[Event "Titled Tuesday Blitz January 17 Early 2023"]
[White "Broca Jimenez, Fernando"]
[Black "Ahmad, Al Khatib"]
[WhiteFideId "5104742"]
[BlackFideId "8103178"]
[WhiteElo "2075"]
[BlackElo "2344"]
[Result "0-1"]
[Round "06"]
[TimeControl "180+2"]
[Date "2023.01.17"]
[WhiteClock "0:00:08"]
[BlackClock "0:00:05"]

1. e4 {[%clk 0:02:53]}  c5 {[%clk 0:02:59]} 2. Nf3 {[%clk 0:02:52]}  g6 {[%clk 0:03:00]} 3. d4 {[%clk 0:02:44]}  cxd4 {[%clk 0:03:00]} 4. Nxd4 {[%clk 0:02:44]}  Bg7 {[%clk 0:02:59]} 5. c4 {[%clk 0:02:38]}  Nc6 {[%clk 0:02:59]} 6. Be3 {[%clk 0:02:38]}  Nf6 {[%clk 0:03:00]} 7. Nc3 {[%clk 0:02:38]}  O-O {[%clk 0:03:00]} 8. Be2 {[%clk 0:02:37]}  b6 {[%clk 0:02:57]} 9. O-O {[%clk 0:02:34]}  Bb7 {[%clk 0:02:57]} 10. f3 {[%clk 0:02:33]}  e6 {[%clk 0:02:57]} 11. Ndb5 {[%clk 0:02:15]}  d5 {[%clk 0:02:56]} 12. cxd5 {[%clk 0:02:12]}  exd5 {[%clk 0:02:56]} 13. Nxd5 {[%clk 0:02:04]}  Nxd5 {[%clk 0:02:53]} 14. Qxd5 {[%clk 0:02:04]}  Qxd5 {[%clk 0:02:38]} 15. exd5 {[%clk 0:02:05]}  Nb4 {[%clk 0:02:37]} 16. Nc3 {[%clk 0:01:51]}  Rfe8 {[%clk 0:01:55]} 17. Bd2 {[%clk 0:01:30]}  Bd4+ {[%clk 0:01:09]} 18. Kh1 {[%clk 0:01:23]}  Nxd5 {[%clk 0:00:56]} 19. Bb5 {[%clk 0:01:08]}  Red8 {[%clk 0:00:46]} 20. Rac1 {[%clk 0:00:48]}  a6 {[%clk 0:00:34]} 21. Bc4 {[%clk 0:00:29]}  Nxc3 {[%clk 0:00:27]} 22. Bxc3 {[%clk 0:00:30]}  Rac8 {[%clk 0:00:21]} 23. Bxd4 {[%clk 0:00:19]}  Rxd4 {[%clk 0:00:22]} 24. Bb3 {[%clk 0:00:17]}  Rxc1 {[%clk 0:00:12]} 25. Rxc1 {[%clk 0:00:18]}  Bd5 {[%clk 0:00:09]} 26. Bxd5 {[%clk 0:00:15]}  Rxd5 {[%clk 0:00:09]} 27. h3 {[%clk 0:00:12]}  Rd2 {[%clk 0:00:09]} 28. Rb1 {[%clk 0:00:13]}  h5 {[%clk 0:00:10]} 29. Kh2 {[%clk 0:00:13]}  h4 {[%clk 0:00:10]} 30. Kg1 {[%clk 0:00:11]}  Kg7 {[%clk 0:00:10]} 31. a3 {[%clk 0:00:12]}  a5 {[%clk 0:00:10]} 32. b4 {[%clk 0:00:12]}  a4 {[%clk 0:00:10]} 33. b5 {[%clk 0:00:12]}  Rd3 {[%clk 0:00:10]} 34. Rc1 {[%clk 0:00:11]}  Rb3 {[%clk 0:00:08]} 35. Rc4 {[%clk 0:00:11]}  Rxa3 {[%clk 0:00:08]} 36. Rc6 {[%clk 0:00:11]}  Rb3 {[%clk 0:00:05]} 37. Rxb6 {[%clk 0:00:11]}  a3 {[%clk 0:00:06]} 38. Ra6 {[%clk 0:00:11]}  g5 {[%clk 0:00:03]} 39. Kf2 {[%clk 0:00:10]}  Rb2+ {[%clk 0:00:04]} 40. Ke3 {[%clk 0:00:09]}  a2 {[%clk 0:00:05]} 41. b6 {[%clk 0:00:08]}  Rxg2 {[%clk 0:00:05]} 42. b7 {[%clk 0:00:08]}  Rb2 {[%clk 0:00:05]} 43. Rxa2 {[%clk 0:00:08]}  Rxb7 {[%clk 0:00:04]} 44. Ra5 {[%clk 0:00:09]}  Kg6 {[%clk 0:00:04]} 45. f4 {[%clk 0:00:09]}  Rb3+ {[%clk 0:00:03]} 46. Ke4 {[%clk 0:00:09]}  Rb4+ {[%clk 0:00:04]} 47. Ke3 {[%clk 0:00:07]}  Rxf4 {[%clk 0:00:04]} 48. Ra6+ {[%clk 0:00:07]}  Rf6 {[%clk 0:00:04]} 49. Ra5 {[%clk 0:00:08]}  Re6+ {[%clk 0:00:04]} 50. Kf3 {[%clk 0:00:08]}  Rf6+ {[%clk 0:00:05]} 51. Kg4 {[%clk 0:00:08]}  Rf4# {[%clk 0:00:05]} 0-1


[Site "https://www.chess.com"]

[Event "Titled Tuesday Blitz January 17 Early 2023"]
[White "Thiel, Thomas"]
[Black "Lacasa Diaz, Jose Antonio"]
[WhiteFideId "4615964"]
[BlackFideId "2203375"]
[WhiteElo "2234"]
[BlackElo "2359"]
[Result "0-1"]
[Round "06"]
[TimeControl "180+2"]
[Date "2023.01.17"]
[WhiteClock "0:00:02"]
[BlackClock "0:00:18"]

1. e4 {[%clk 0:03:00]}  c5 {[%clk 0:02:59]} 2. Nc3 {[%clk 0:02:59]}  g6 {[%clk 0:02:58]} 3. d4 {[%clk 0:02:57]}  cxd4 {[%clk 0:02:58]} 4. Qxd4 {[%clk 0:02:58]}  Nf6 {[%clk 0:02:58]} 5. Be3 {[%clk 0:02:55]}  Nc6 {[%clk 0:02:58]} 6. Qd2 {[%clk 0:02:54]}  Bg7 {[%clk 0:02:48]} 7. f3 {[%clk 0:02:52]}  O-O {[%clk 0:02:45]} 8. Nge2 {[%clk 0:02:51]}  d6 {[%clk 0:02:45]} 9. Nf4 {[%clk 0:02:47]}  Be6 {[%clk 0:02:30]} 10. Nxe6 {[%clk 0:02:45]}  fxe6 {[%clk 0:02:30]} 11. Bc4 {[%clk 0:02:43]}  Qc8 {[%clk 0:02:31]} 12. Bb3 {[%clk 0:02:31]}  Na5 {[%clk 0:02:30]} 13. Ne2 {[%clk 0:02:27]}  Nxb3 {[%clk 0:02:28]} 14. axb3 {[%clk 0:02:28]}  Qc7 {[%clk 0:02:19]} 15. O-O {[%clk 0:02:20]}  a6 {[%clk 0:02:14]} 16. c3 {[%clk 0:02:19]}  e5 {[%clk 0:01:55]} 17. Bh6 {[%clk 0:02:07]}  Bxh6 {[%clk 0:01:45]} 18. Qxh6 {[%clk 0:02:08]}  Qb6+ {[%clk 0:01:43]} 19. Kh1 {[%clk 0:02:03]}  Qxb3 {[%clk 0:01:44]} 20. Rab1 {[%clk 0:01:56]}  Nh5 {[%clk 0:01:38]} 21. g3 {[%clk 0:01:51]}  Qc2 {[%clk 0:01:33]} 22. Ng1 {[%clk 0:01:50]}  Rf7 {[%clk 0:01:25]} 23. Rfc1 {[%clk 0:01:35]}  Qb3 {[%clk 0:01:18]} 24. Qd2 {[%clk 0:01:19]}  Raf8 {[%clk 0:01:18]} 25. Kg2 {[%clk 0:01:17]}  Nf6 {[%clk 0:01:11]} 26. Re1 {[%clk 0:01:11]}  Kg7 {[%clk 0:01:07]} 27. Rbd1 {[%clk 0:01:08]}  Nd7 {[%clk 0:00:59]} 28. Qe2 {[%clk 0:01:06]}  Nc5 {[%clk 0:00:54]} 29. Rf1 {[%clk 0:01:01]}  a5 {[%clk 0:00:48]} 30. Rd2 {[%clk 0:00:51]}  a4 {[%clk 0:00:48]} 31. Rc2 {[%clk 0:00:47]}  b5 {[%clk 0:00:46]} 32. Rf2 {[%clk 0:00:41]}  Qc4 {[%clk 0:00:46]} 33. Nh3 {[%clk 0:00:36]}  h6 {[%clk 0:00:40]} 34. Rf1 {[%clk 0:00:27]}  Nxe4 {[%clk 0:00:32]} 35. Qxc4 {[%clk 0:00:12]}  bxc4 {[%clk 0:00:31]} 36. Ra1 {[%clk 0:00:11]}  Nc5 {[%clk 0:00:28]} 37. Ng1 {[%clk 0:00:07]}  g5 {[%clk 0:00:25]} 38. g4 {[%clk 0:00:05]}  d5 {[%clk 0:00:20]} 39. Rd2 {[%clk 0:00:04]}  e6 {[%clk 0:00:20]} 40. h3 {[%clk 0:00:02]}  Rb8 {[%clk 0:00:18]} 0-1


[Site "https://www.chess.com"]

[Event "Titled Tuesday Blitz January 17 Early 2023"]
[White "Jimenez Fernandez, Rebeca"]
[Black "Nugumanov, Bakhtiyar"]
[WhiteFideId "32070934"]
[BlackFideId "13701797"]
[WhiteElo "2069"]
[BlackElo "2316"]
[Result "0-1"]
[Round "06"]
[TimeControl "180+2"]
[Date "2023.01.17"]
[WhiteClock "0:00:18"]
[BlackClock "0:00:48"]

1. e4 {[%clk 0:02:59]}  d6 {[%clk 0:03:00]} 2. d4 {[%clk 0:02:59]}  Nf6 {[%clk 0:03:01]} 3. Nc3 {[%clk 0:02:59]}  e5 {[%clk 0:03:01]} 4. Nf3 {[%clk 0:02:57]}  exd4 {[%clk 0:03:01]} 5. Nxd4 {[%clk 0:02:56]}  Be7 {[%clk 0:03:02]} 6. Bc4 {[%clk 0:02:56]}  O-O {[%clk 0:03:03]} 7. O-O {[%clk 0:02:56]}  c6 {[%clk 0:03:03]} 8. a4 {[%clk 0:02:55]}  d5 {[%clk 0:03:03]} 9. exd5 {[%clk 0:02:54]}  cxd5 {[%clk 0:03:04]} 10. Bd3 {[%clk 0:02:51]}  Nc6 {[%clk 0:03:04]} 11. Nf5 {[%clk 0:02:43]}  Bxf5 {[%clk 0:03:04]} 12. Bxf5 {[%clk 0:02:42]}  Re8 {[%clk 0:03:02]} 13. Bg5 {[%clk 0:02:35]}  d4 {[%clk 0:03:02]} 14. Ne2 {[%clk 0:02:01]}  Qd5 {[%clk 0:03:01]} 15. Ng3 {[%clk 0:01:38]}  g6 {[%clk 0:02:53]} 16. Bxf6 {[%clk 0:01:31]}  Bxf6 {[%clk 0:02:54]} 17. Bd3 {[%clk 0:01:27]}  Re7 {[%clk 0:02:29]} 18. Qd2 {[%clk 0:01:07]}  Rae8 {[%clk 0:02:28]} 19. Rae1 {[%clk 0:01:04]}  h5 {[%clk 0:02:21]} 20. Rxe7 {[%clk 0:00:56]}  Rxe7 {[%clk 0:02:22]} 21. Re1 {[%clk 0:00:56]}  h4 {[%clk 0:01:53]} 22. Ne4 {[%clk 0:00:51]}  Bg7 {[%clk 0:01:46]} 23. b4 {[%clk 0:00:39]}  Ne5 {[%clk 0:01:36]} 24. Bf1 {[%clk 0:00:26]}  h3 {[%clk 0:01:33]} 25. Qf4 {[%clk 0:00:19]}  hxg2 {[%clk 0:01:15]} 26. Bxg2 {[%clk 0:00:19]}  Qe6 {[%clk 0:01:02]} 27. Ng5 {[%clk 0:00:19]}  Qc4 {[%clk 0:00:51]} 28. Bd5 {[%clk 0:00:18]}  Qxd5 {[%clk 0:00:48]} 0-1


[Site "https://www.chess.com"]

[Event "Titled Tuesday Blitz January 17 Early 2023"]
[White "Grot, Blazej"]
[Black "Tarnowska, Aleksandra"]
[WhiteFideId "21835845"]
[BlackFideId "1180967"]
[WhiteElo "1990"]
[BlackElo "1835"]
[Result "0-1"]
[Round "06"]
[TimeControl "180+2"]
[Date "2023.01.17"]
[WhiteClock "0:01:19"]
[BlackClock "0:00:55"]

1. d4 {[%clk 0:02:55]}  d5 {[%clk 0:02:59]} 2. Nf3 {[%clk 0:02:54]}  e6 {[%clk 0:03:00]} 3. c4 {[%clk 0:02:53]}  Nf6 {[%clk 0:03:00]} 4. g3 {[%clk 0:02:53]}  Be7 {[%clk 0:03:00]} 5. Bg2 {[%clk 0:02:53]}  O-O {[%clk 0:03:00]} 6. O-O {[%clk 0:02:53]}  b6 {[%clk 0:02:57]} 7. Nbd2 {[%clk 0:02:54]}  Bb7 {[%clk 0:02:56]} 8. Qc2 {[%clk 0:02:53]}  c5 {[%clk 0:02:51]} 9. dxc5 {[%clk 0:02:50]}  bxc5 {[%clk 0:02:49]} 10. b3 {[%clk 0:02:50]}  Nc6 {[%clk 0:02:45]} 11. Bb2 {[%clk 0:02:49]}  Nb4 {[%clk 0:02:37]} 12. Qb1 {[%clk 0:02:47]}  Rc8 {[%clk 0:02:25]} 13. Rd1 {[%clk 0:02:45]}  Qb6 {[%clk 0:02:19]} 14. a3 {[%clk 0:02:43]}  Nc6 {[%clk 0:02:18]} 15. Qc2 {[%clk 0:02:43]}  Na5 {[%clk 0:02:11]} 16. Ne5 {[%clk 0:02:39]}  d4 {[%clk 0:01:35]} 17. Bxb7 {[%clk 0:02:20]}  Qxb7 {[%clk 0:01:35]} 18. Nd3 {[%clk 0:02:19]}  Ne4 {[%clk 0:01:25]} 19. Nxe4 {[%clk 0:02:13]}  Qxe4 {[%clk 0:01:26]} 20. b4 {[%clk 0:02:13]}  cxb4 {[%clk 0:01:22]} 21. axb4 {[%clk 0:02:11]}  Nxc4 {[%clk 0:01:14]} 22. Qb3 {[%clk 0:02:06]}  Qxe2 {[%clk 0:01:08]} 23. Rxa7 {[%clk 0:01:59]}  Bf6 {[%clk 0:01:03]} 24. Rc1 {[%clk 0:01:46]}  Nd2 {[%clk 0:01:00]} 25. Qa3 {[%clk 0:01:21]}  Rxc1+ {[%clk 0:00:56]} 26. Bxc1 {[%clk 0:01:19]}  Qf1# {[%clk 0:00:55]} 0-1


[Site "https://www.chess.com"]

[Event "Titled Tuesday Blitz January 17 Early 2023"]
[White "Zampronha, Wladimir Camilo"]
[Black "Aung Thant Zin"]
[WhiteFideId "2103087"]
[BlackFideId "13000063"]
[WhiteElo "2176"]
[BlackElo "2268"]
[Result "0-1"]
[Round "06"]
[TimeControl "180+2"]
[Date "2023.01.17"]
[WhiteClock "0:00:03"]
[BlackClock "0:00:18"]

1. e4 {[%clk 0:03:00]}  c5 {[%clk 0:02:59]} 2. Nf3 {[%clk 0:03:00]}  Nc6 {[%clk 0:02:59]} 3. d4 {[%clk 0:03:00]}  cxd4 {[%clk 0:03:00]} 4. Nxd4 {[%clk 0:03:01]}  Nf6 {[%clk 0:03:00]} 5. Nc3 {[%clk 0:03:00]}  d6 {[%clk 0:03:00]} 6. Bg5 {[%clk 0:02:59]}  e6 {[%clk 0:03:00]} 7. Qd2 {[%clk 0:03:00]}  a6 {[%clk 0:03:00]} 8. O-O-O {[%clk 0:03:00]}  h6 {[%clk 0:03:01]} 9. Bh4 {[%clk 0:02:46]}  Nxe4 {[%clk 0:02:59]} 10. Nxe4 {[%clk 0:02:36]}  Qxh4 {[%clk 0:02:57]} 11. Nxc6 {[%clk 0:02:19]}  Qxe4 {[%clk 0:02:48]} 12. Nd4 {[%clk 0:02:19]}  Be7 {[%clk 0:02:04]} 13. Kb1 {[%clk 0:02:17]}  Qe5 {[%clk 0:01:52]} 14. f4 {[%clk 0:02:15]}  Qc5 {[%clk 0:01:51]} 15. g3 {[%clk 0:01:58]}  O-O {[%clk 0:01:49]} 16. Bg2 {[%clk 0:01:57]}  Rb8 {[%clk 0:01:43]} 17. Rhe1 {[%clk 0:01:56]}  Rd8 {[%clk 0:01:39]} 18. g4 {[%clk 0:01:46]}  e5 {[%clk 0:01:31]} 19. Nb3 {[%clk 0:01:44]}  Qc7 {[%clk 0:01:30]} 20. g5 {[%clk 0:01:32]}  Bf5 {[%clk 0:01:20]} 21. gxh6 {[%clk 0:01:30]}  g6 {[%clk 0:01:20]} 22. Bd5 {[%clk 0:01:27]}  Bf6 {[%clk 0:01:15]} 23. Rc1 {[%clk 0:01:16]}  Rbc8 {[%clk 0:01:06]} 24. Ka1 {[%clk 0:01:05]}  Kh7 {[%clk 0:01:05]} 25. c4 {[%clk 0:00:58]}  b6 {[%clk 0:01:05]} 26. h4 {[%clk 0:00:53]}  a5 {[%clk 0:01:04]} 27. fxe5 {[%clk 0:00:45]}  dxe5 {[%clk 0:01:00]} 28. Qf2 {[%clk 0:00:36]}  a4 {[%clk 0:00:58]} 29. Nd2 {[%clk 0:00:36]}  a3 {[%clk 0:00:51]} 30. Ne4 {[%clk 0:00:36]}  Bh8 {[%clk 0:00:47]} 31. Ng5+ {[%clk 0:00:33]}  Kxh6 {[%clk 0:00:41]} 32. Nxf7+ {[%clk 0:00:32]}  Kh7 {[%clk 0:00:40]} 33. Nxd8 {[%clk 0:00:19]}  e4 {[%clk 0:00:38]} 34. Rc3 {[%clk 0:00:14]}  axb2+ {[%clk 0:00:35]} 35. Qxb2 {[%clk 0:00:15]}  Rxd8 {[%clk 0:00:35]} 36. h5 {[%clk 0:00:07]}  Rxd5 {[%clk 0:00:19]} 37. hxg6+ {[%clk 0:00:08]}  Kg8 {[%clk 0:00:20]} 38. Rh1 {[%clk 0:00:03]}  Bg7 {[%clk 0:00:18]} 0-1


[Site "https://www.chess.com"]

[Event "Titled Tuesday Blitz January 17 Early 2023"]
[White "Ho, In Hei Henry"]
[Black "Martin, Lewis"]
[WhiteFideId "6002552"]
[BlackFideId "410551"]
[WhiteElo "1735"]
[BlackElo "2135"]
[Result "0-1"]
[Round "06"]
[TimeControl "180+2"]
[Date "2023.01.17"]
[WhiteClock "0:01:16"]
[BlackClock "0:02:38"]

1. e4 {[%clk 0:03:00]}  c5 {[%clk 0:02:59]} 2. Nf3 {[%clk 0:03:01]}  d6 {[%clk 0:02:59]} 3. d4 {[%clk 0:03:01]}  cxd4 {[%clk 0:02:59]} 4. Nxd4 {[%clk 0:03:02]}  Nf6 {[%clk 0:02:59]} 5. Nc3 {[%clk 0:03:02]}  a6 {[%clk 0:02:59]} 6. f3 {[%clk 0:02:56]}  e5 {[%clk 0:02:58]} 7. Nb3 {[%clk 0:02:56]}  Be7 {[%clk 0:02:57]} 8. Be3 {[%clk 0:02:56]}  Be6 {[%clk 0:02:56]} 9. Qd2 {[%clk 0:02:56]}  O-O {[%clk 0:02:56]} 10. O-O-O {[%clk 0:02:57]}  Qc8 {[%clk 0:02:56]} 11. Kb1 {[%clk 0:02:52]}  a5 {[%clk 0:02:56]} 12. a4 {[%clk 0:02:31]}  Rd8 {[%clk 0:02:54]} 13. g4 {[%clk 0:02:30]}  d5 {[%clk 0:02:53]} 14. exd5 {[%clk 0:02:07]}  Nxd5 {[%clk 0:02:52]} 15. Nxd5 {[%clk 0:02:04]}  Bxd5 {[%clk 0:02:51]} 16. Qf2 {[%clk 0:02:02]}  Bxb3 {[%clk 0:02:44]} 17. Rxd8+ {[%clk 0:02:01]}  Qxd8 {[%clk 0:02:44]} 18. cxb3 {[%clk 0:02:01]}  Qd1+ {[%clk 0:02:44]} 19. Ka2 {[%clk 0:01:56]}  Nc6 {[%clk 0:02:43]} 20. Bg2 {[%clk 0:01:24]}  Nb4+ {[%clk 0:02:41]} 21. Ka3 {[%clk 0:01:24]}  Nd3+ {[%clk 0:02:41]} 22. Bc5 {[%clk 0:01:16]}  Nxf2 {[%clk 0:02:38]} 0-1


[Site "https://www.chess.com"]

[Event "Titled Tuesday Blitz January 17 Early 2023"]
[White "Larina, Maria"]
[Black "Deev, Andrei"]
[WhiteFideId "24113182"]
[BlackFideId "4102690"]
[WhiteElo "1948"]
[BlackElo "2390"]
[Result "0-1"]
[Round "06"]
[TimeControl "180+2"]
[Date "2023.01.17"]
[WhiteClock "0:00:09"]
[BlackClock "0:00:13"]

1. e4 {[%clk 0:02:58]}  d6 {[%clk 0:03:00]} 2. d4 {[%clk 0:02:56]}  Nf6 {[%clk 0:03:00]} 3. Nc3 {[%clk 0:02:56]}  c6 {[%clk 0:03:00]} 4. a4 {[%clk 0:02:56]}  e6 {[%clk 0:03:00]} 5. g4 {[%clk 0:02:55]}  d5 {[%clk 0:03:00]} 6. e5 {[%clk 0:02:49]}  Nfd7 {[%clk 0:02:59]} 7. Bf4 {[%clk 0:02:22]}  c5 {[%clk 0:02:59]} 8. dxc5 {[%clk 0:02:19]}  Bxc5 {[%clk 0:02:55]} 9. Nf3 {[%clk 0:02:15]}  Qb6 {[%clk 0:02:49]} 10. Qd2 {[%clk 0:02:10]}  Nc6 {[%clk 0:02:26]} 11. Bd3 {[%clk 0:01:35]}  Bb4 {[%clk 0:02:17]} 12. Bb5 {[%clk 0:01:20]}  O-O {[%clk 0:01:32]} 13. Bxc6 {[%clk 0:01:15]}  bxc6 {[%clk 0:01:28]} 14. O-O {[%clk 0:01:08]}  Nc5 {[%clk 0:01:26]} 15. Qe3 {[%clk 0:01:00]}  Bxc3 {[%clk 0:01:05]} 16. Qxc3 {[%clk 0:00:53]}  Ne4 {[%clk 0:01:01]} 17. Qb3 {[%clk 0:00:32]}  Ba6 {[%clk 0:00:47]} 18. Rfe1 {[%clk 0:00:28]}  Qxb3 {[%clk 0:00:32]} 19. cxb3 {[%clk 0:00:27]}  c5 {[%clk 0:00:31]} 20. Rac1 {[%clk 0:00:26]}  Rab8 {[%clk 0:00:30]} 21. Be3 {[%clk 0:00:19]}  Rfc8 {[%clk 0:00:24]} 22. Nd2 {[%clk 0:00:16]}  Nxd2 {[%clk 0:00:21]} 23. Bxd2 {[%clk 0:00:17]}  Rxb3 {[%clk 0:00:21]} 24. Rc3 {[%clk 0:00:15]}  Rxb2 {[%clk 0:00:18]} 25. Bf4 {[%clk 0:00:12]}  Rb4 {[%clk 0:00:18]} 26. Bg3 {[%clk 0:00:10]}  Rxg4 {[%clk 0:00:15]} 27. Rec1 {[%clk 0:00:09]}  c4 {[%clk 0:00:13]} 0-1


[Site "https://www.chess.com"]

[Event "Titled Tuesday Blitz January 17 Early 2023"]
[White "Puranik, Abhimanyu"]
[Black "Sarana, Alexey"]
[WhiteFideId "5061245"]
[BlackFideId "24133795"]
[WhiteElo "2613"]
[BlackElo "2685"]
[Result "0-1"]
[Round "07"]
[TimeControl "180+2"]
[Date "2023.01.17"]
[WhiteClock "0:00:03"]
[BlackClock "0:00:01"]

1. Nf3 {[%clk 0:03:00]}  d5 {[%clk 0:03:00]} 2. c4 {[%clk 0:02:59]}  e6 {[%clk 0:02:59]} 3. g3 {[%clk 0:02:59]}  dxc4 {[%clk 0:02:59]} 4. Bg2 {[%clk 0:02:56]}  a6 {[%clk 0:02:58]} 5. a4 {[%clk 0:02:54]}  Nc6 {[%clk 0:02:57]} 6. O-O {[%clk 0:02:52]}  Nf6 {[%clk 0:02:56]} 7. Na3 {[%clk 0:02:52]}  Na5 {[%clk 0:02:49]} 8. Qc2 {[%clk 0:02:47]}  Qd5 {[%clk 0:02:37]} 9. Rd1 {[%clk 0:02:23]}  Bd6 {[%clk 0:01:57]} 10. d3 {[%clk 0:02:13]}  cxd3 {[%clk 0:01:26]} 11. Rxd3 {[%clk 0:02:12]}  Qh5 {[%clk 0:01:21]} 12. Bd2 {[%clk 0:02:10]}  O-O {[%clk 0:01:16]} 13. h3 {[%clk 0:01:54]}  Nc6 {[%clk 0:01:14]} 14. Nc4 {[%clk 0:01:52]}  Nb4 {[%clk 0:01:04]} 15. Bxb4 {[%clk 0:01:52]}  Bxb4 {[%clk 0:01:05]} 16. Nce5 {[%clk 0:01:52]}  Nd5 {[%clk 0:00:49]} 17. e4 {[%clk 0:01:45]}  Ne7 {[%clk 0:00:48]} 18. Qxc7 {[%clk 0:01:41]}  Ng6 {[%clk 0:00:49]} 19. Rad1 {[%clk 0:01:34]}  Nxe5 {[%clk 0:00:40]} 20. Nxe5 {[%clk 0:01:33]}  a5 {[%clk 0:00:33]} 21. Rd8 {[%clk 0:01:26]}  f6 {[%clk 0:00:26]} 22. Nc4 {[%clk 0:00:59]}  Qf7 {[%clk 0:00:05]} 23. Rxf8+ {[%clk 0:00:49]}  Bxf8 {[%clk 0:00:05]} 24. Qxf7+ {[%clk 0:00:47]}  Kxf7 {[%clk 0:00:05]} 25. Nb6 {[%clk 0:00:45]}  Ra6 {[%clk 0:00:04]} 26. Nxc8 {[%clk 0:00:45]}  Rc6 {[%clk 0:00:03]} 27. Na7 {[%clk 0:00:45]}  Rc2 {[%clk 0:00:04]} 28. Rd7+ {[%clk 0:00:21]}  Ke8 {[%clk 0:00:04]} 29. Rxb7 {[%clk 0:00:20]}  Bc5 {[%clk 0:00:05]} 30. Nb5 {[%clk 0:00:14]}  Bxf2+ {[%clk 0:00:03]} 31. Kh2 {[%clk 0:00:14]}  g5 {[%clk 0:00:03]} 32. h4 {[%clk 0:00:07]}  gxh4 {[%clk 0:00:03]} 33. gxh4 {[%clk 0:00:07]}  h5 {[%clk 0:00:04]} 34. Bf3 {[%clk 0:00:06]}  Bxh4+ {[%clk 0:00:03]} 35. Kh3 {[%clk 0:00:06]}  Bg5 {[%clk 0:00:03]} 36. Bxh5+ {[%clk 0:00:07]}  Kd8 {[%clk 0:00:03]} 37. Bg4 {[%clk 0:00:07]}  f5 {[%clk 0:00:02]} 38. exf5 {[%clk 0:00:07]}  exf5 {[%clk 0:00:03]} 39. Bxf5 {[%clk 0:00:08]}  Rxb2 {[%clk 0:00:04]} 40. Kg4 {[%clk 0:00:06]}  Be3 {[%clk 0:00:03]} 41. Rd7+ {[%clk 0:00:05]}  Ke8 {[%clk 0:00:04]} 42. Nc7+ {[%clk 0:00:05]}  Kf8 {[%clk 0:00:04]} 43. Ne6+ {[%clk 0:00:05]}  Kg8 {[%clk 0:00:04]} 44. Bh7+ {[%clk 0:00:05]}  Kh8 {[%clk 0:00:04]} 45. Bg6 {[%clk 0:00:04]}  Rb8 {[%clk 0:00:04]} 46. Kf5 {[%clk 0:00:04]}  Bc1 {[%clk 0:00:03]} 47. Kf6 {[%clk 0:00:03]}  Kg8 {[%clk 0:00:04]} 48. Rg7+ {[%clk 0:00:02]}  Kh8 {[%clk 0:00:04]} 49. Rh7+ {[%clk 0:00:03]}  Kg8 {[%clk 0:00:05]} 50. Rg7+ {[%clk 0:00:02]}  Kh8 {[%clk 0:00:05]} 51. Rd7 {[%clk 0:00:02]}  Bb2+ {[%clk 0:00:06]} 52. Kf7 {[%clk 0:00:02]}  Bc1 {[%clk 0:00:06]} 53. Rd8+ {[%clk 0:00:02]}  Rxd8 {[%clk 0:00:06]} 54. Nxd8 {[%clk 0:00:02]}  Bg5 {[%clk 0:00:06]} 55. Ne6 {[%clk 0:00:02]}  Bd2 {[%clk 0:00:07]} 56. Bf5 {[%clk 0:00:03]}  Bc3 {[%clk 0:00:07]} 57. Ng5 {[%clk 0:00:02]}  Bd2 {[%clk 0:00:07]} 58. Ne4 {[%clk 0:00:03]}  Bb4 {[%clk 0:00:01]} 0-1


[Site "https://www.chess.com"]

[Event "Titled Tuesday Blitz January 17 Early 2023"]
[White "Artemiev, Vladislav"]
[Black "Svane, Rasmus"]
[WhiteFideId "24101605"]
[BlackFideId "4657101"]
[WhiteElo "2701"]
[BlackElo "2623"]
[Result "1-0"]
[Round "07"]
[TimeControl "180+2"]
[Date "2023.01.17"]
[WhiteClock "0:01:09"]
[BlackClock "0:01:10"]

1. c4 {[%clk 0:02:59]}  Nf6 {[%clk 0:02:59]} 2. Nc3 {[%clk 0:02:59]}  e5 {[%clk 0:02:59]} 3. e3 {[%clk 0:02:57]}  Nc6 {[%clk 0:02:57]} 4. a3 {[%clk 0:02:57]}  d5 {[%clk 0:02:53]} 5. cxd5 {[%clk 0:02:57]}  Nxd5 {[%clk 0:02:53]} 6. Qc2 {[%clk 0:02:57]}  a6 {[%clk 0:02:44]} 7. Nf3 {[%clk 0:02:53]}  Nxc3 {[%clk 0:02:41]} 8. bxc3 {[%clk 0:02:46]}  Bd6 {[%clk 0:02:36]} 9. d4 {[%clk 0:02:41]}  O-O {[%clk 0:02:36]} 10. Be2 {[%clk 0:02:37]}  f5 {[%clk 0:02:34]} 11. c4 {[%clk 0:02:30]}  e4 {[%clk 0:01:56]} 12. Nd2 {[%clk 0:02:29]}  Qh4 {[%clk 0:01:44]} 13. g3 {[%clk 0:02:13]}  Qh3 {[%clk 0:01:43]} 14. Bf1 {[%clk 0:01:48]}  Qh5 {[%clk 0:01:40]} 15. Bb2 {[%clk 0:01:47]}  b6 {[%clk 0:01:39]} 16. Bg2 {[%clk 0:01:26]}  Bd7 {[%clk 0:01:38]} 17. O-O {[%clk 0:01:25]}  Rf6 {[%clk 0:01:35]} 18. Qd1 {[%clk 0:01:22]}  Qg5 {[%clk 0:01:23]} 19. c5 {[%clk 0:01:11]}  bxc5 {[%clk 0:01:17]} 20. dxc5 {[%clk 0:01:11]}  Be5 {[%clk 0:01:18]} 21. Bxe5 {[%clk 0:01:10]}  Nxe5 {[%clk 0:01:19]} 22. Nxe4 {[%clk 0:01:10]}  fxe4 {[%clk 0:01:09]} 23. Qd5+ {[%clk 0:01:10]}  Be6 {[%clk 0:01:10]} 24. Qxa8+ {[%clk 0:01:09]}  Rf8 {[%clk 0:01:10]} 25. Qxe4 {[%clk 0:01:09]} 1-0


[Site "https://www.chess.com"]

[Event "Titled Tuesday Blitz January 17 Early 2023"]
[White "Lazavik, Denis"]
[Black "Kravtsiv, Martyn"]
[WhiteFideId "13515110"]
[BlackFideId "14113147"]
[WhiteElo "2544"]
[BlackElo "2598"]
[Result "1-0"]
[Round "07"]
[TimeControl "180+2"]
[Date "2023.01.17"]
[WhiteClock "0:02:39"]
[BlackClock "0:01:35"]

1. d4 {[%clk 0:03:00]}  d5 {[%clk 0:03:00]} 2. c4 {[%clk 0:03:01]}  e6 {[%clk 0:03:00]} 3. Nf3 {[%clk 0:03:01]}  Nf6 {[%clk 0:03:00]} 4. g3 {[%clk 0:03:02]}  Be7 {[%clk 0:03:00]} 5. Bg2 {[%clk 0:03:02]}  O-O {[%clk 0:03:00]} 6. O-O {[%clk 0:03:02]}  b6 {[%clk 0:03:00]} 7. cxd5 {[%clk 0:03:02]}  exd5 {[%clk 0:03:01]} 8. Nc3 {[%clk 0:03:02]}  Bb7 {[%clk 0:03:01]} 9. Ne5 {[%clk 0:03:03]}  Nbd7 {[%clk 0:02:55]} 10. Qa4 {[%clk 0:03:02]}  Nb8 {[%clk 0:02:29]} 11. Bf4 {[%clk 0:03:01]}  a6 {[%clk 0:02:24]} 12. Rfd1 {[%clk 0:02:59]}  Nh5 {[%clk 0:02:11]} 13. Be3 {[%clk 0:02:55]}  Nf6 {[%clk 0:02:12]} 14. Rac1 {[%clk 0:02:54]}  Bd6 {[%clk 0:02:10]} 15. Bg5 {[%clk 0:02:52]}  h6 {[%clk 0:02:09]} 16. Bxf6 {[%clk 0:02:52]}  gxf6 {[%clk 0:02:08]} 17. Ng4 {[%clk 0:02:48]}  h5 {[%clk 0:02:07]} 18. Nh6+ {[%clk 0:02:48]}  Kh7 {[%clk 0:02:06]} 19. Nf5 {[%clk 0:02:48]}  c6 {[%clk 0:01:56]} 20. e4 {[%clk 0:02:47]}  Bc7 {[%clk 0:01:49]} 21. Qc2 {[%clk 0:02:46]}  Ra7 {[%clk 0:01:39]} 22. exd5 {[%clk 0:02:45]}  cxd5 {[%clk 0:01:40]} 23. Qd2 {[%clk 0:02:44]}  Kg6 {[%clk 0:01:35]} 24. Qh6+ {[%clk 0:02:39]} 1-0


[Site "https://www.chess.com"]